bitfinex/quotes_ETHUSD_20250406
["timestamp","ask_amount","ask_price","bid_price","bid_amount"]
[1743978337703,0.02,1594.9,1594.7,12.54116]
[1743978338014,0.02,1594.9,1594.8,6.27037]
[1743978338525,0.02,1594.9,1594.8,10.28777]
[1743978338731,0.02,1594.9,1594.8,12.53744558]
[1743978338936,10.0247,1595.7,1595.5,6.26748]
[1743978339134,2.80695889,1595.9,1595.5,6.26746]
[1743978339336,0.02,1595.9,1595.8,6.26644]
[1743978339807,0.02,1595.9,1595.8,9.26644]
[1743978340002,0.02,1595.9,1595.7,6.26646]
[1743978340329,0.02,1595.9,1595.7,6.26654]
[1743978340534,0.02,1595.9,1595.6,9.26708]
[1743978340705,0.02,1595.9,1595.4,3.0]
[1743978340910,0.02,1595.9,1595.8,6.26644]
[1743978341411,0.02,1595.9,1595.7,6.26645]
[1743978341617,0.02,1595.9,1595.5,12.53502]
[1743978341839,0.02,1595.9,1595.6,6.26703]
[1743978342710,0.57,1595.9,1595.4,12.53576]
[1743978342913,0.57,1595.9,1595.4,6.2678]
[1743978343115,0.57,1595.9,1595.1,9.34]
[1743978343432,9.332,1595.8,1595.6,6.26699]
[1743978343739,5.99417852,1595.9,1595.5,6.26758]
[1743978343740,0.57,1595.9,1595.5,6.26758]
[1743978343947,0.57,1595.9,1595.5,6.26745]
[1743978344107,0.57,1595.9,1595.5,12.5349]
[1743978344314,0.02,1595.9,1595.6,6.267]
[1743978344529,0.02,1595.9,1595.5,6.26741]
[1743978345019,0.02,1595.9,1595.4,6.268]
[1743978345218,1.02347,1595.9,1595.4,12.53581]
[1743978345459,0.02,1595.9,1595.7,6.2666]
[1743978345632,0.12919173,1595.8,1595.7,6.32925959]
[1743978345820,0.12919173,1595.8,1595.7,9.2666]
[1743978346028,0.02,1595.9,1595.8,9.26644]
[1743978346227,45.178,1596.7,1596.4,6.26387]
[1743978346541,45.178,1596.7,1596.2,3.0]
[1743978346747,45.178,1596.7,1596.3,12.52837]
[1743978347043,45.178,1596.7,1596.5,6.26352]
[1743978347343,45.178,1596.7,1596.6,6.2633]
[1743978348210,0.02,1596.9,1596.6,6.2633]
[1743978348415,0.02,1596.9,1596.7,6.26258]
[1743978348747,0.02,1596.9,1596.6,6.2633]
[1743978348748,0.02,1596.9,1596.6,6.26327]
[1743978349043,0.02,1596.9,1596.7,12.52558]
[1743978349259,0.02,1596.9,1596.7,6.26269]
[1743978349564,0.02,1597.9,1597.5,3.0]
[1743978349735,0.02,1597.9,1596.9,1.0073]
[1743978349736,0.02,1597.9,1597.0,5.93842584]
[1743978349935,10.0027,1597.8,1596.9,10.26942]
[1743978350141,1.00027,1597.7,1596.9,4.0073]
[1743978350339,10.0027,1597.8,1597.4,6.26002]
[1743978350661,10.0027,1597.8,1597.3,6.26023]
[1743978350825,0.6827,1597.8,1597.4,6.25984]
[1743978351024,0.6827,1597.8,1597.5,6.25961]
[1743978351261,0.6827,1597.8,1597.0,6.26135]
[1743978351262,3.0,1597.7,1597.0,6.26135]
[1743978351467,8.97417852,1597.7,1596.8,3.0]
[1743978351633,8.97417852,1597.7,1596.9,6.26209]
[1743978351834,0.55,1597.6,1597.0,6.26171]
[1743978352034,0.55,1597.6,1597.0,12.52322]
[1743978352229,0.7201,1597.3,1596.7,6.26256]
[1743978352452,9.314,1597.2,1596.8,6.26234]
[1743978352655,9.314,1597.2,1596.7,6.26253]
[1743978352855,9.314,1597.2,1596.6,3.0]
[1743978353031,9.314,1597.2,1596.8,6.26249]
[1743978353532,0.55,1597.1,1596.6,6.26325]
[1743978353962,6.52417852,1597.1,1596.5,2.96969725]
[1743978354167,6.52417852,1597.1,1596.5,9.23335725]
[1743978354340,1.2701,1596.9,1596.5,2.96969725]
[1743978354542,52.38727852,1596.9,1596.1,6.26525]
[1743978354741,0.55,1596.7,1596.2,6.32739245]
[1743978354946,9.86,1596.7,1596.2,6.26466]
[1743978355663,0.55,1596.7,1596.1,6.2649]
[1743978355836,9.859,1596.7,1596.1,6.26527]
[1743978356037,9.859,1596.7,1596.2,0.626527]
[1743978356231,9.859,1596.7,1596.3,6.26432]
[1743978356431,9.859,1596.7,1595.9,6.26575]
[1743978356432,9.859,1596.7,1596.1,6.26525]
[1743978356651,6.69427852,1596.6,1595.9,6.26583]
[1743978356867,6.69427852,1596.6,1596.2,6.26452]
[1743978357246,8.34960637,1596.6,1596.1,6.26522]
[1743978357447,8.34960637,1596.6,1596.1,12.53028]
[1743978357648,6.69427852,1596.6,1596.1,6.26506]
[1743978357847,6.69427852,1596.6,1596.3,6.26421]
[1743978358073,6.69427852,1596.6,1595.9,6.26605]
[1743978358241,45.8631,1596.9,1596.4,6.2639]
[1743978358436,61.14327852,1596.9,1596.4,6.2639]
[1743978358641,0.55,1596.7,1596.1,6.26494]
[1743978358850,0.55,1596.5,1596.0,6.26563]
[1743978359074,9.305,1596.4,1596.1,6.32772527]
[1743978359241,9.305,1596.4,1596.3,6.26448]
[1743978359441,9.305,1596.4,1596.1,6.26526]
[1743978359651,9.305,1596.4,1596.0,0.46908498]
[1743978359851,9.305,1596.4,1596.2,6.26459]
[1743978360152,9.305,1596.4,1596.0,0.46908498]
[1743978360516,0.55,1596.2,1595.5,6.26738]
[1743978360669,5.97417852,1596.1,1595.5,6.26738]
[1743978360841,6.62659637,1596.1,1595.5,3.0]
[1743978361042,0.55,1595.9,1595.4,2.9717448]
[1743978361341,0.7201,1596.0,1595.6,6.26721]
[1743978361772,0.7201,1596.0,1595.7,6.2668]
[1743978361979,0.55,1595.9,1595.5,6.2675]
[1743978362280,0.7201,1596.0,1595.6,6.26706]
[1743978362643,0.55,1595.9,1595.4,9.2394748]
[1743978363283,0.7201,1596.0,1595.5,0.06266596]
[1743978363484,6.52417852,1595.9,1595.4,9.2393748]
[1743978363656,6.52417852,1595.9,1595.4,9.2397448]
[1743978363846,6.52417852,1595.9,1595.7,6.26667]
[1743978364041,6.52417852,1595.9,1595.7,6.26666]
[1743978364284,5.97417852,1595.9,1595.7,6.26666]
[1743978364455,51.11617852,1596.3,1596.0,6.26544]
[1743978364652,51.11617852,1596.3,1596.0,12.53088]
[1743978364856,51.11617852,1596.3,1596.1,6.26515]
[1743978365051,51.11617852,1596.3,1596.0,7.518738]
[1743978365377,6.69427852,1596.7,1596.3,9.26424]
[1743978365689,0.7201,1596.9,1596.6,6.26302]
[1743978366003,0.7201,1597.1,1596.7,0.68892144]
[1743978366166,5.97417852,1597.2,1597.0,6.26174]
[1743978366364,5.97417852,1597.2,1597.0,6.32409914]
[1743978366578,6.69427852,1597.4,1597.0,6.26149]
[1743978366767,6.69427852,1597.4,1597.0,6.26148]
[1743978366977,6.69427852,1597.4,1597.1,6.26131]
[1743978367153,5.97417852,1597.6,1597.1,7.513619]
[1743978367354,5.97417852,1597.5,1596.5,6.26368]
[1743978367555,0.7201,1597.3,1596.7,6.26291]
[1743978367750,15.27017852,1597.4,1596.3,13.23627584]
[1743978367751,0.55,1597.0,1596.4,6.26406]
[1743978368079,0.55,1597.0,1596.3,6.26447]
[1743978368080,5.97417852,1596.9,1596.3,6.26447]
[1743978368284,5.97417852,1596.9,1596.1,1.0336]
[1743978368285,0.55,1596.8,1596.4,6.26402]
[1743978368462,0.55,1596.8,1596.5,6.32611351]
[1743978368788,15.26917852,1596.9,1596.5,6.26348]
[1743978368989,15.26917852,1596.9,1596.5,12.52696]
[1743978369192,15.26917852,1596.9,1596.5,6.26348]
[1743978369499,0.7201,1596.7,1596.2,6.26477]
[1743978369799,0.55,1596.4,1595.5,6.26726]
[1743978370094,15.98727852,1596.3,1595.8,6.26619]
[1743978370400,0.55,1596.2,1595.6,6.26687]
[1743978370580,0.55,1596.0,1595.6,6.26687]
[1743978370761,0.55,1596.0,1595.6,12.53388]
[1743978370961,0.55,1596.0,1595.7,6.26676]
[1743978371159,0.55,1596.0,1595.6,6.26687]
[1743978371691,0.55,1596.0,1595.5,6.26742]
[1743978371870,0.55,1596.0,1595.5,12.53488]
[1743978372190,0.55,1596.0,1595.4,2.9717448]
[1743978372191,0.55,1595.8,1595.4,2.9717448]
[1743978372391,0.55,1595.8,1595.2,6.26878]
[1743978372392,9.84,1595.8,1595.2,12.53735]
[1743978372599,15.81417852,1595.8,1595.1,0.02]
[1743978372890,15.81417852,1595.8,1595.2,6.2688]
[1743978373097,6.69427852,1595.7,1595.1,0.02]
[1743978373305,0.55,1595.6,1595.1,0.02]
[1743978373460,0.55,1595.6,1595.1,6.28917]
[1743978373802,0.55,1595.4,1595.1,0.02]
[1743978373980,15.26317852,1595.3,1595.1,0.02]
[1743978374297,4.2701,1595.2,1595.1,0.02]
[1743978375510,1.2701,1595.2,1595.1,0.02]
[1743978375700,0.7201,1595.2,1595.1,0.02]
[1743978376255,1.2701,1595.2,1595.1,0.02]
[1743978378003,60.40917852,1595.3,1595.1,0.02]
[1743978378864,0.55,1595.2,1595.1,0.02]
[1743978379167,5.97417852,1595.2,1595.1,0.02]
[1743978379390,5.97417852,1595.2,1595.1,6.28919]
[1743978380086,45.146,1595.3,1595.1,6.28919]
[1743978380559,45.146,1595.3,1595.2,6.2688]
[1743978380696,5.97417852,1595.7,1595.6,6.26723]
[1743978381020,15.25917852,1595.9,1595.4,6.26802]
[1743978381220,5.97417852,1595.9,1595.8,7.29184]
[1743978381520,5.97417852,1595.9,1595.7,6.26656]
[1743978381723,5.97417852,1595.9,1595.8,6.26644]
[1743978382021,5.97417852,1595.9,1595.7,6.26656]
[1743978382222,5.97417852,1595.9,1595.8,6.26644]
[1743978382923,5.97417852,1596.2,1595.8,3.0]
[1743978383083,5.97417852,1596.2,1595.8,6.26629]
[1743978383525,9.87166795,1596.2,1595.8,12.5325]
[1743978383718,9.87166795,1596.2,1595.8,6.26621]
[1743978383904,0.55,1596.1,1595.6,6.26705]
[1743978384624,0.55,1595.9,1595.4,6.26798]
[1743978384828,15.97387852,1595.8,1595.3,6.2683]
[1743978384981,15.97387852,1595.8,1595.4,6.26773]
[1743978385186,6.52417852,1595.7,1595.1,1.1134]
[1743978385387,5.97417852,1595.7,1595.6,6.26723]
[1743978386181,5.97417852,1595.7,1595.4,6.26784]
[1743978386419,5.97417852,1595.7,1595.2,3.0]
[1743978386613,5.97417852,1595.7,1595.4,6.26785]
[1743978387041,5.97417852,1595.7,1595.4,6.26783]
[1743978387242,5.97417852,1595.7,1595.5,6.2676]
[1743978387548,5.97417852,1595.7,1595.6,6.26723]
[1743978387706,5.97417852,1595.7,1595.6,6.32989958]
[1743978387906,5.97417852,1595.7,1595.6,8.15370996]
[1743978388133,49.06048943,1595.9,1595.7,6.26652]
[1743978388407,3.89748943,1595.9,1595.8,6.26644]
[1743978388615,5.97417852,1596.0,1595.8,6.26644]
[1743978388915,5.97417852,1596.0,1595.7,6.2668]
[1743978389116,5.97417852,1596.0,1595.7,12.53346]
[1743978389318,5.97417852,1596.0,1595.8,6.26637]
[1743978389523,0.55,1595.9,1595.6,6.2672]
[1743978389922,5.97417852,1595.8,1595.4,0.9975]
[1743978390112,5.97417852,1595.7,1595.1,1.0346]
[1743978390312,6.69387852,1595.7,1595.3,6.26835]
[1743978391142,6.69387852,1595.7,1595.3,3.0]
[1743978391341,5.97417852,1595.6,1595.5,6.26748]
[1743978391665,5.97417852,1595.6,1595.4,6.26785]
[1743978391815,5.97417852,1595.6,1595.4,12.5357]
[1743978392152,5.97417852,1595.6,1595.3,6.26824]
[1743978392370,5.97417852,1595.6,1595.3,6.26821]
[1743978392857,5.97417852,1595.6,1595.5,6.26762]
[1743978393013,5.97417852,1595.6,1595.3,6.26824]
[1743978393213,5.97417852,1595.6,1595.4,6.26775]
[1743978393516,5.97417852,1595.6,1595.5,6.26762]
[1743978394629,5.97417852,1595.6,1595.4,6.26775]
[1743978395015,5.97417852,1595.6,1595.4,12.59831112]
[1743978395220,5.97417852,1595.6,1595.4,12.53564]
[1743978395420,5.97417852,1595.6,1595.4,6.26775]
[1743978395622,5.97417852,1595.6,1595.3,12.53664]
[1743978396258,5.97417852,1595.6,1595.4,6.33065288]
[1743978396757,5.97417852,1595.6,1595.4,12.59851288]
[1743978396920,5.97417852,1595.6,1595.4,6.26786]
[1743978397120,5.97417852,1595.6,1595.4,6.33053288]
[1743978397321,5.97417852,1595.6,1595.3,6.26833]
[1743978398261,5.97417852,1595.6,1595.3,12.53657]
[1743978398561,5.97417852,1595.6,1595.5,6.26762]
[1743978398925,5.97417852,1595.6,1595.4,6.26769]
[1743978399218,5.97417852,1595.6,1595.4,6.33036293]
[1743978399425,3.90012451,1595.5,1595.4,6.33036293]
[1743978399637,3.90012451,1595.5,1595.4,6.33036469]
[1743978399824,3.90012451,1595.5,1595.4,7.65291517]
[1743978400565,2.68133559,1595.5,1595.4,11.71188494]
[1743978400861,2.68133559,1595.5,1595.4,12.12671329]
[1743978402179,5.59e-06,1595.5,1595.4,12.12671329]
[1743978402735,5.59e-06,1595.5,1595.4,9.12671329]
[1743978403131,5.59e-06,1595.5,1595.3,6.26823]
[1743978403342,5.59e-06,1595.5,1595.4,6.33069227]
[1743978403527,5.97417852,1596.0,1595.8,6.26631]
[1743978403949,5.97417852,1596.0,1595.7,6.2668]
[1743978404145,5.97417852,1596.0,1595.5,6.26754]
[1743978404146,6.64356637,1596.0,1595.5,6.26754]
[1743978404328,0.55,1595.9,1595.4,6.26798]
[1743978404530,0.7197,1595.7,1595.5,6.2676]
[1743978404835,0.55,1595.6,1595.2,6.26875]
[1743978405030,0.7197,1595.7,1595.3,6.26815]
[1743978405431,0.55,1595.6,1595.1,6.28913]
[1743978405691,0.55,1595.4,1595.1,0.02]
[1743978405979,1.2697,1595.2,1595.1,0.02]
[1743978407680,10.24387852,1595.2,1595.1,0.02]
[1743978408645,7.24387852,1595.2,1595.1,0.02]
[1743978408879,8.03683636,1595.2,1595.1,0.02]
[1743978409602,9.69387852,1595.2,1595.1,0.02]
[1743978409891,6.69387852,1595.2,1595.1,0.02]
[1743978410099,5.97417852,1595.3,1595.2,6.2688]
[1743978410300,5.97417852,1595.3,1595.1,6.28902]
[1743978410610,5.97417852,1595.3,1595.1,12.55798]
[1743978410794,5.97417852,1595.3,1595.1,7.544778]
[1743978410946,5.97417852,1595.3,1595.1,0.02]
[1743978412476,5.97417852,1595.3,1595.1,6.28905]
[1743978412994,5.97417852,1595.3,1595.1,0.02]
[1743978413396,15.22117852,1595.3,1595.1,0.02]
[1743978413693,5.97417852,1595.3,1595.1,6.28898]
[1743978413897,5.97417852,1595.3,1595.1,0.648898]
[1743978414073,5.97417852,1595.3,1595.1,0.02]
[1743978415403,5.97417852,1595.3,1595.1,6.28904]
[1743978415587,5.97417852,1595.3,1595.1,6.28919]
[1743978416192,5.97417852,1595.3,1595.2,6.3314827]
[1743978416367,15.21817852,1595.7,1595.3,6.26841]
[1743978416569,15.21817852,1595.7,1595.4,6.26784]
[1743978416770,15.21817852,1595.7,1595.3,0.63314827]
[1743978417010,15.21817852,1595.7,1595.3,13.16973827]
[1743978417208,15.21817852,1595.7,1595.4,6.26791]
[1743978417408,15.21817852,1595.7,1595.4,1.31692883]
[1743978417611,15.21817852,1595.7,1595.2,6.26866]
[1743978417821,6.52417852,1595.6,1595.1,0.02]
[1743978417995,3.55,1595.4,1595.1,0.02]
[1743978418171,5.97417852,1595.3,1595.1,0.02]
[1743978418370,9.242,1595.2,1595.1,0.02]
[1743978418601,20.95529637,1595.2,1595.1,0.02]
[1743978419387,19.43367852,1595.2,1595.1,0.02]
[1743978420480,16.43367852,1595.2,1595.1,0.02]
[1743978420708,15.21617852,1595.2,1595.1,0.02]
[1743978422372,15.76617852,1595.2,1595.1,0.02]
[1743978423672,5.97417852,1595.2,1595.1,0.02]
[1743978423879,5.97417852,1595.2,1595.1,6.28919]
[1743978424096,5.97417852,1595.7,1595.4,6.26802]
[1743978424296,5.97417852,1595.7,1595.5,6.33012888]
[1743978424515,5.97417852,1595.7,1595.3,6.26823]
[1743978424516,5.97417852,1595.7,1595.4,6.26781]
[1743978424854,5.97417852,1595.7,1595.2,1.0688]
[1743978425009,15.20917852,1595.6,1595.2,1.0688]
[1743978425346,15.20917852,1595.6,1595.4,6.26773]
[1743978425703,15.20917852,1595.6,1595.4,12.5356]
[1743978426046,15.20917852,1595.6,1595.4,6.26773]
[1743978426250,5.97417852,1595.6,1595.5,6.26762]
[1743978426403,5.97417852,1595.6,1595.5,7.521155]
[1743978426839,5.97417852,1595.6,1595.5,8.589955]
[1743978427013,5.97417852,1595.6,1595.5,8.65262098]
[1743978427203,5.97417852,1596.0,1595.7,6.26663]
[1743978427413,19.24650723,1596.9,1595.9,6.26605]
[1743978427414,5.97417852,1596.4,1595.9,6.26605]
[1743978427616,5.97417852,1596.4,1596.1,1.0688]
[1743978427817,5.97417852,1596.4,1595.8,6.893053]
[1743978428018,0.55,1596.2,1595.7,1.0688]
[1743978428214,0.55,1596.2,1595.6,6.26722]
[1743978428215,9.23,1596.1,1595.5,0.9962]
[1743978428415,15.20417852,1596.1,1595.5,0.9962]
[1743978428741,6.52417852,1596.0,1595.5,0.9962]
[1743978429240,5.97417852,1596.0,1595.5,1.722599]
[1743978429429,5.97417852,1596.0,1595.5,7.989969]
[1743978429629,0.55,1595.9,1595.5,7.989969]
[1743978429930,5.97417852,1595.8,1595.1,0.02]
[1743978430239,9.52417852,1595.7,1595.1,0.02]
[1743978430438,1.2175,1595.5,1595.1,0.02]
[1743978430618,5.97417852,1595.4,1595.1,6.28904]
[1743978430816,5.97417852,1595.4,1595.3,6.26841]
[1743978431015,5.97417852,1595.6,1595.4,6.26766]
[1743978431342,5.97417852,1595.6,1595.4,7.32616]
[1743978431514,5.97417852,1595.6,1595.4,13.59395]
[1743978431722,5.97417852,1595.6,1595.5,7.627015]
[1743978432013,15.20017852,1595.8,1595.5,7.626985]
[1743978432209,15.20017852,1595.8,1595.5,13.894375]
[1743978432539,9.226,1595.8,1595.7,6.26684]
[1743978432741,45.167,1595.9,1595.6,12.53409]
[1743978433040,5.97417852,1596.0,1595.7,7.519889]
[1743978433208,5.97417852,1596.2,1595.7,6.26648]
[1743978433538,5.97417852,1596.2,1595.8,6.26625]
[1743978434323,5.97417852,1596.2,1595.9,0.06265141]
[1743978434521,5.97417852,1596.2,1595.9,6.96157155]
[1743978434743,5.97417852,1596.2,1596.0,6.26541]
[1743978434911,5.97417852,1596.2,1595.9,0.63289014]
[1743978435112,5.97417852,1596.2,1595.6,6.26704]
[1743978435312,0.6675,1596.1,1595.5,7.2595]
[1743978435668,5.97417852,1596.2,1596.1,6.26527]
[1743978435847,51.14017852,1596.5,1596.2,6.26473]
[1743978436149,9.218,1596.9,1596.2,0.9919]
[1743978436350,5.97417852,1597.0,1596.2,0.9919]
[1743978436351,5.97417852,1597.0,1596.7,6.26287]
[1743978436652,5.97417852,1597.0,1596.9,6.26213]
[1743978437010,5.97417852,1597.0,1596.8,7.25417]
[1743978437215,5.97417852,1597.0,1596.8,0.9919]
[1743978437437,5.97417852,1597.0,1596.5,7.33187]
[1743978437648,6.64167852,1596.9,1596.3,7.30974]
[1743978437844,15.85767852,1596.9,1596.3,7.30961]
[1743978438044,15.85767852,1596.9,1596.4,0.730961]
[1743978438045,6.52417852,1596.8,1596.4,0.730961]
[1743978438346,0.55,1596.6,1596.1,12.53016]
[1743978438520,5.97417852,1596.7,1596.2,6.32728904]
[1743978438727,5.97417852,1596.7,1596.3,0.6327289]
[1743978439251,6.52417852,1596.6,1596.0,1.0528]
[1743978439418,6.52417852,1596.6,1595.6,6.26684]
[1743978439419,0.55,1596.4,1595.8,7.28891]
[1743978439612,5.97417852,1596.3,1595.8,7.28891]
[1743978440146,5.97417852,1596.3,1595.8,1.0225]
[1743978440347,5.97417852,1596.3,1595.8,7.28894]
[1743978440551,5.97417852,1596.3,1595.9,0.728894]
[1743978440948,5.97417852,1596.3,1595.9,6.994914]
[1743978441358,0.55,1596.2,1595.5,7.28261]
[1743978441528,0.55,1596.0,1595.4,6.268]
[1743978441715,0.55,1596.0,1595.2,9.209]
[1743978441716,0.55,1595.8,1595.2,6.26856]
[1743978441924,15.18317852,1595.9,1595.1,9.13284718]
[1743978442219,5.97417852,1596.1,1595.9,6.26582]
[1743978442447,5.97417852,1596.1,1595.8,6.2663]
[1743978442639,45.15,1596.2,1595.9,6.26589]
[1743978442927,45.15,1596.2,1595.9,0.626589]
[1743978443249,7.22577852,1596.1,1595.4,6.26774]
[1743978443458,0.7016,1595.8,1595.2,0.91328472]
[1743978443751,0.55,1595.7,1595.2,7.18182472]
[1743978443951,9.9086,1595.8,1595.3,6.26825]
[1743978444153,0.55,1595.7,1595.2,7.18205472]
[1743978444353,5.97417852,1595.6,1595.4,6.26786]
[1743978444652,5.97417852,1595.6,1595.3,6.98640547]
[1743978444961,5.97417852,1596.0,1595.6,7.35202]
[1743978445320,5.92417852,1596.0,1595.8,6.26627]
[1743978445530,5.92417852,1596.0,1595.8,6.89916284]
[1743978445728,5.92417852,1596.0,1595.8,0.63289284]
[1743978446067,5.92417852,1596.0,1595.9,6.26605]
[1743978446224,5.92417852,1596.1,1596.0,6.26566]
[1743978446419,5.92417852,1596.1,1595.8,6.26642]
[1743978446650,6.62577852,1596.1,1595.6,7.35204]
[1743978446856,5.92417852,1596.0,1595.7,6.26658]
[1743978447147,5.92417852,1596.0,1595.6,1.0851]
[1743978447148,5.92417852,1596.0,1595.8,6.26643]
[1743978447360,5.92417852,1596.0,1595.9,6.26605]
[1743978447527,5.92417852,1596.0,1595.9,8.145926]
[1743978448058,5.92417852,1596.0,1595.9,8.20857814]
[1743978448218,5.92417852,1596.5,1596.3,6.26446]
[1743978448416,5.92417852,1596.7,1596.3,6.26435]
[1743978448616,5.92417852,1596.7,1596.4,0.06262858]
[1743978448858,5.92417852,1596.7,1596.2,12.5296]
[1743978449068,5.92417852,1596.7,1595.9,8.145556]
[1743978449069,7.06659637,1596.6,1595.9,6.2658]
[1743978449226,0.55,1596.6,1596.0,6.26553]
[1743978449564,0.55,1596.4,1596.0,6.26545]
[1743978449764,5.92417852,1596.3,1595.9,6.26602]
[1743978450058,5.92417852,1596.3,1595.8,7.2467]
[1743978450233,5.92417852,1596.3,1595.8,1.705078]
[1743978450434,5.92417852,1596.3,1596.0,6.26546]
[1743978450755,5.92417852,1596.3,1596.0,12.53097]
[1743978450955,5.92417852,1596.3,1596.0,6.26546]
[1743978451451,5.92417852,1596.3,1595.9,12.53178]
[1743978451645,5.92417852,1596.3,1596.0,12.59390704]
[1743978451847,5.92417852,1596.3,1596.0,6.26563]
[1743978452653,5.92417852,1596.3,1595.9,7.67084909]
[1743978452852,5.92417852,1596.2,1595.7,6.2667]
[1743978453058,5.92417852,1596.2,1595.8,6.26631]
[1743978453351,5.92417852,1596.2,1595.7,12.53356]
[1743978453572,0.7016,1596.1,1595.6,6.26705]
[1743978453849,5.92417852,1596.0,1595.7,6.32930848]
[1743978454063,5.92417852,1596.0,1595.7,0.06265848]
[1743978454270,5.92417852,1596.0,1595.8,6.26643]
[1743978454555,9.62577852,1596.3,1596.0,6.26553]
[1743978454742,5.92417852,1596.2,1595.8,6.89924585]
[1743978454945,5.92417852,1596.2,1595.8,12.53255]
[1743978455255,5.92417852,1596.2,1595.7,6.26664]
[1743978455426,5.92417852,1596.2,1595.8,6.26642]
[1743978455626,5.92417852,1596.2,1595.7,6.26664]
[1743978455828,5.92417852,1596.1,1595.7,6.26664]
[1743978456441,5.92417852,1596.1,1595.7,0.06266079]
[1743978456640,3.55,1596.0,1595.6,6.26705]
[1743978456845,0.7016,1595.9,1595.5,6.26746]
[1743978457165,0.7016,1595.9,1595.5,1.36066]
[1743978457365,6.62577852,1595.9,1595.4,7.33894]
[1743978457524,6.62577852,1596.2,1596.0,6.26537]
[1743978457732,5.92417852,1596.2,1596.1,6.26527]
[1743978457928,5.92417852,1596.2,1596.0,6.26537]
[1743978458467,5.92417852,1596.2,1595.7,6.2666]
[1743978458637,1.2516,1596.1,1595.7,12.59591089]
[1743978458840,0.7016,1596.1,1595.9,6.26604]
[1743978459163,5.92417852,1596.2,1596.0,6.26564]
[1743978459330,5.92417852,1596.2,1596.0,12.53128]
[1743978459530,5.92417852,1596.2,1595.9,6.26603]
[1743978459983,5.92417852,1596.2,1595.6,1.0716]
[1743978460141,5.92417852,1596.2,1596.1,7.33027]
[1743978460483,5.92417852,1596.5,1596.2,6.26472]
[1743978460626,0.7016,1596.3,1595.6,1.0771]
[1743978460831,3.0,1596.1,1595.7,6.26684]
[1743978461068,5.92417852,1596.0,1595.4,7.3448]
[1743978461269,6.62577852,1596.2,1595.4,1.0771]
[1743978461425,5.92417852,1596.2,1596.0,6.26549]
[1743978461631,5.92417852,1596.2,1596.1,6.26527]
[1743978461866,5.92417852,1596.4,1596.2,6.26471]
[1743978462069,5.92417852,1596.5,1596.4,6.26409]
[1743978462589,5.92417852,1596.5,1596.3,12.52858]
[1743978462872,5.92417852,1596.5,1596.4,7.516948]
[1743978463236,5.92417852,1596.5,1596.3,6.26425]
[1743978463469,5.92417852,1596.5,1596.3,12.52858]
[1743978463774,5.92417852,1596.5,1596.3,6.26425]
[1743978464475,5.92417852,1596.5,1596.3,6.32688598]
[1743978464636,5.92417852,1596.5,1596.3,6.26425]
[1743978464971,5.92417852,1596.5,1596.4,6.26409]
[1743978465176,5.92417852,1596.5,1596.0,6.892149]
[1743978465177,6.62577852,1596.5,1595.9,7.27479]
[1743978465348,0.55,1596.4,1595.9,7.27464]
[1743978465547,9.729,1596.4,1596.0,6.26563]
[1743978465748,5.92417852,1596.4,1596.2,6.26472]
[1743978466076,45.8476,1597.0,1596.4,6.26383]
[1743978466284,5.92417852,1596.9,1596.5,6.26366]
[1743978466441,5.92417852,1596.9,1596.4,6.26383]
[1743978466641,5.92417852,1596.9,1596.5,0.626383]
[1743978466871,3.55,1596.8,1596.2,6.26468]
[1743978467080,3.55,1596.8,1596.4,6.2639]
[1743978467233,3.0,1596.8,1596.5,0.06263211]
[1743978467579,0.7016,1596.6,1596.1,1.0568]
[1743978467737,5.92417852,1596.6,1596.2,6.26459]
[1743978468081,5.92417852,1596.6,1596.3,0.626459]
[1743978468236,5.92417852,1596.6,1596.4,0.0626327]
[1743978468440,5.92417852,1596.7,1596.4,6.3267127]
[1743978468842,5.92417852,1596.7,1596.4,6.26408]
[1743978469038,5.92417852,1596.7,1596.5,0.626408]
[1743978469491,5.92417852,1596.7,1596.5,6.889778]
[1743978469691,5.92417852,1596.7,1596.5,14.189858]
[1743978469982,5.92417852,1596.9,1596.6,6.2633]
[1743978470195,0.55,1597.3,1596.6,7.6822988]
[1743978470358,6.02417852,1597.8,1597.2,9.26095]
[1743978470359,5.92417852,1597.8,1597.2,9.26095]
[1743978470562,5.92417852,1597.8,1597.3,0.06258411]
[1743978470865,5.92417852,1597.8,1597.3,0.63233641]
[1743978471274,5.92417852,1597.8,1597.4,0.06258901]
[1743978471452,5.92417852,1597.8,1597.4,6.32258901]
[1743978471656,5.92417852,1597.8,1597.4,6.32255901]
[1743978471987,5.92417852,1597.8,1597.4,0.06258901]
[1743978472297,5.92417852,1597.8,1597.4,6.26]
[1743978472503,5.92417852,1597.8,1597.5,6.32220544]
[1743978472656,5.92417852,1597.8,1597.6,0.0625855]
[1743978472991,0.55,1597.6,1597.0,6.26157]
[1743978473288,6.56597852,1597.5,1596.9,13.57477]
[1743978473454,6.56597852,1597.5,1597.0,6.26167]
[1743978473786,5.92417852,1597.5,1597.3,6.26027]
[1743978473988,5.92417852,1597.5,1597.0,6.26174]
[1743978473989,45.135,1597.7,1597.4,6.26017]
[1743978474157,45.135,1597.7,1597.4,6.26]
[1743978474364,5.92417852,1597.8,1597.5,6.32209845]
[1743978474588,5.92417852,1597.8,1597.5,6.9543083]
[1743978475198,5.94417852,1597.9,1597.5,0.6947983]
[1743978475398,5.94417852,1597.9,1597.8,6.2586]
[1743978475580,0.02,1597.9,1597.8,6.2586]
[1743978476461,0.02,1597.9,1597.8,7.2412]
[1743978477377,0.02,1597.9,1597.8,10.70318479]
[1743978477561,5.92417852,1598.7,1598.5,6.25586]
[1743978477751,5.92417852,1598.7,1598.4,6.25625]
[1743978477953,5.92417852,1598.7,1598.4,12.51225]
[1743978478212,5.92417852,1598.7,1598.5,6.31836076]
[1743978478395,5.94417852,1598.9,1598.8,6.25469]